[Event "Titled Tuesday Blitz April 4 Early 2023"]
[White "Santos Flores, Alberto"]
[Black "Salemgareev, Tagir"]
[WhiteFideId "3601234"]
[BlackFideId "24199052"]
[WhiteElo "2235"]
[BlackElo "2360"]
[Result "0-1"]
[Round "05"]
[TimeControl "180+2"]
[Date "2023.04.04"]
[WhiteClock "0:00:30"]
[BlackClock "0:01:26"]

1. d4 {[%clk 0:03:00]}  Nf6 {[%clk 0:02:58]} 2. Bf4 {[%clk 0:03:00]}  e6 {[%clk 0:02:55]} 3. e3 {[%clk 0:02:52]}  b6 {[%clk 0:02:54]} 4. Nf3 {[%clk 0:02:51]}  Bb7 {[%clk 0:02:54]} 5. Nbd2 {[%clk 0:02:51]}  Be7 {[%clk 0:02:54]} 6. Bd3 {[%clk 0:02:50]}  Nh5 {[%clk 0:02:52]} 7. c3 {[%clk 0:02:42]}  Nxf4 {[%clk 0:02:50]} 8. exf4 {[%clk 0:02:43]}  c5 {[%clk 0:02:49]} 9. h4 {[%clk 0:02:41]}  cxd4 {[%clk 0:02:44]} 10. cxd4 {[%clk 0:02:40]}  Nc6 {[%clk 0:02:42]} 11. a3 {[%clk 0:02:38]}  Bf6 {[%clk 0:02:38]} 12. d5 {[%clk 0:02:33]}  Ne7 {[%clk 0:02:36]} 13. dxe6 {[%clk 0:02:28]}  dxe6 {[%clk 0:02:35]} 14. Bb5+ {[%clk 0:02:21]}  Kf8 {[%clk 0:02:32]} 15. Rb1 {[%clk 0:02:00]}  h5 {[%clk 0:02:30]} 16. Qe2 {[%clk 0:01:56]}  g6 {[%clk 0:02:29]} 17. Ne4 {[%clk 0:01:55]}  Bxe4 {[%clk 0:02:26]} 18. Qxe4 {[%clk 0:01:54]}  Kg7 {[%clk 0:02:26]} 19. O-O {[%clk 0:01:52]}  Qd5 {[%clk 0:02:24]} 20. Qxd5 {[%clk 0:01:46]}  Nxd5 {[%clk 0:02:25]} 21. g3 {[%clk 0:01:47]}  Rac8 {[%clk 0:02:24]} 22. Ne5 {[%clk 0:01:29]}  Rc5 {[%clk 0:02:09]} 23. Ba6 {[%clk 0:01:19]}  Bxe5 {[%clk 0:02:05]} 24. fxe5 {[%clk 0:01:11]}  Nc7 {[%clk 0:02:05]} 25. Bd3 {[%clk 0:01:03]}  Rd8 {[%clk 0:02:00]} 26. Rfd1 {[%clk 0:00:45]}  Rxe5 {[%clk 0:02:00]} 27. Bf1 {[%clk 0:00:44]}  Rxd1 {[%clk 0:01:50]} 28. Rxd1 {[%clk 0:00:44]}  Rd5 {[%clk 0:01:50]} 29. Rc1 {[%clk 0:00:44]}  Rc5 {[%clk 0:01:50]} 30. Rxc5 {[%clk 0:00:40]}  bxc5 {[%clk 0:01:50]} 31. f4 {[%clk 0:00:41]}  Kf6 {[%clk 0:01:48]} 32. Kf2 {[%clk 0:00:42]}  Ke7 {[%clk 0:01:46]} 33. Ke3 {[%clk 0:00:41]}  Kd6 {[%clk 0:01:45]} 34. Kd3 {[%clk 0:00:36]}  Nd5 {[%clk 0:01:37]} 35. Bg2 {[%clk 0:00:35]}  Ne7 {[%clk 0:01:28]} 36. Be4 {[%clk 0:00:32]}  Nf5 {[%clk 0:01:27]} 37. Bxf5 {[%clk 0:00:32]}  gxf5 {[%clk 0:01:26]} 38. Kc4 {[%clk 0:00:30]}  f6 {[%clk 0:01:26]} 0-1


[Site "https://www.chess.com"]

[Event "Titled Tuesday Blitz April 4 Early 2023"]
[White "Shvedova, Alexandra"]
[Black "Sokolovsky, Yahli"]
[WhiteFideId "54154782"]
[BlackFideId "2820242"]
[WhiteElo "2057"]
[BlackElo "2316"]
[Result "1-0"]
[Round "05"]
[TimeControl "180+2"]
[Date "2023.04.04"]
[WhiteClock "0:00:07"]
[BlackClock "0:00:08"]

1. d4 {[%clk 0:03:00]}  d5 {[%clk 0:02:56]} 2. c4 {[%clk 0:03:00]}  c6 {[%clk 0:02:55]} 3. Nf3 {[%clk 0:03:00]}  Nf6 {[%clk 0:02:54]} 4. g3 {[%clk 0:03:00]}  Bf5 {[%clk 0:02:45]} 5. Qb3 {[%clk 0:02:53]}  Qb6 {[%clk 0:02:36]} 6. c5 {[%clk 0:02:53]}  Qxb3 {[%clk 0:02:35]} 7. axb3 {[%clk 0:02:54]}  Nbd7 {[%clk 0:02:21]} 8. Nc3 {[%clk 0:02:51]}  e6 {[%clk 0:02:15]} 9. b4 {[%clk 0:02:50]}  Ne4 {[%clk 0:02:04]} 10. Nh4 {[%clk 0:02:17]}  Ndf6 {[%clk 0:01:52]} 11. f3 {[%clk 0:01:56]}  Nxc3 {[%clk 0:01:48]} 12. bxc3 {[%clk 0:01:57]}  Be7 {[%clk 0:01:34]} 13. Nxf5 {[%clk 0:01:26]}  exf5 {[%clk 0:01:33]} 14. Kf2 {[%clk 0:01:27]}  O-O {[%clk 0:01:19]} 15. Be3 {[%clk 0:01:13]}  Rfe8 {[%clk 0:00:59]} 16. Bh3 {[%clk 0:01:07]}  g6 {[%clk 0:00:56]} 17. Ra2 {[%clk 0:01:06]}  a6 {[%clk 0:00:49]} 18. Bf4 {[%clk 0:00:48]}  Nh5 {[%clk 0:00:39]} 19. Bc1 {[%clk 0:00:47]}  Bf6 {[%clk 0:00:29]} 20. Re1 {[%clk 0:00:46]}  Re7 {[%clk 0:00:29]} 21. Kf1 {[%clk 0:00:37]}  Rae8 {[%clk 0:00:28]} 22. g4 {[%clk 0:00:35]}  fxg4 {[%clk 0:00:26]} 23. fxg4 {[%clk 0:00:36]}  Bh4 {[%clk 0:00:14]} 24. gxh5 {[%clk 0:00:36]}  Bxe1 {[%clk 0:00:15]} 25. Kxe1 {[%clk 0:00:37]}  f5 {[%clk 0:00:15]} 26. h6 {[%clk 0:00:34]}  Re4 {[%clk 0:00:14]} 27. Bg5 {[%clk 0:00:31]}  Kf7 {[%clk 0:00:12]} 28. Kf2 {[%clk 0:00:31]}  R4e6 {[%clk 0:00:08]} 29. e3 {[%clk 0:00:30]}  Re4 {[%clk 0:00:08]} 30. Ra1 {[%clk 0:00:29]}  Kf8 {[%clk 0:00:07]} 31. Rg1 {[%clk 0:00:27]}  Kf7 {[%clk 0:00:08]} 32. Rg3 {[%clk 0:00:27]}  Kf8 {[%clk 0:00:06]} 33. Bg2 {[%clk 0:00:27]}  R4e6 {[%clk 0:00:06]} 34. Bf3 {[%clk 0:00:26]}  Kf7 {[%clk 0:00:07]} 35. h4 {[%clk 0:00:25]}  Rg8 {[%clk 0:00:06]} 36. Bf4 {[%clk 0:00:24]}  Ke8 {[%clk 0:00:06]} 37. h5 {[%clk 0:00:21]}  Kd7 {[%clk 0:00:05]} 38. Rg5 {[%clk 0:00:18]}  Ke7 {[%clk 0:00:03]} 39. hxg6 {[%clk 0:00:18]}  Rexg6 {[%clk 0:00:03]} 40. Rxf5 {[%clk 0:00:18]}  Rg1 {[%clk 0:00:02]} 41. Re5+ {[%clk 0:00:18]}  Kf6 {[%clk 0:00:02]} 42. Re8 {[%clk 0:00:10]}  R1g2+ {[%clk 0:00:01]} 43. Bxg2 {[%clk 0:00:10]}  Rxe8 {[%clk 0:00:02]} 44. Bf3 {[%clk 0:00:09]}  Kg6 {[%clk 0:00:02]} 45. Kg3 {[%clk 0:00:09]}  Kf5 {[%clk 0:00:02]} 46. Kh4 {[%clk 0:00:08]}  Rg8 {[%clk 0:00:03]} 47. Be2 {[%clk 0:00:04]}  Rg2 {[%clk 0:00:03]} 48. Bd3+ {[%clk 0:00:04]}  Kf6 {[%clk 0:00:03]} 49. Bxh7 {[%clk 0:00:04]}  Rg1 {[%clk 0:00:04]} 50. Kh3 {[%clk 0:00:04]}  Rh1+ {[%clk 0:00:04]} 51. Kg2 {[%clk 0:00:05]}  Rh5 {[%clk 0:00:05]} 52. Bd3 {[%clk 0:00:04]}  Kf7 {[%clk 0:00:04]} 53. h7 {[%clk 0:00:05]}  Kg7 {[%clk 0:00:01]} 54. Be5+ {[%clk 0:00:05]}  Rxe5 {[%clk 0:00:02]} 55. dxe5 {[%clk 0:00:05]}  d4 {[%clk 0:00:02]} 56. exd4 {[%clk 0:00:05]}  a5 {[%clk 0:00:03]} 57. bxa5 {[%clk 0:00:04]}  b6 {[%clk 0:00:04]} 58. axb6 {[%clk 0:00:05]}  Kh8 {[%clk 0:00:04]} 59. b7 {[%clk 0:00:06]}  Kg7 {[%clk 0:00:05]} 60. b8=Q {[%clk 0:00:06]}  Kh6 {[%clk 0:00:06]} 61. Qe8 {[%clk 0:00:06]}  Kg5 {[%clk 0:00:07]} 62. Qxc6 {[%clk 0:00:06]}  Kf4 {[%clk 0:00:08]} 63. Qf3+ {[%clk 0:00:06]}  Kg5 {[%clk 0:00:08]} 64. Qf5+ {[%clk 0:00:07]} 1-0


[Site "https://www.chess.com"]

[Event "Titled Tuesday Blitz April 4 Early 2023"]
[White "Srinath, Rao S.V."]
[Black "Przybylski, Wojciech"]
[WhiteFideId "5028876"]
[BlackFideId "1117599"]
[WhiteElo "2196"]
[BlackElo "2222"]
[Result "0-1"]
[Round "05"]
[TimeControl "180+2"]
[Date "2023.04.04"]
[WhiteClock "0:00:11"]
[BlackClock "0:00:08"]

1. Nf3 {[%clk 0:03:00]}  Nf6 {[%clk 0:02:35]} 2. d4 {[%clk 0:02:58]}  d5 {[%clk 0:02:34]} 3. c4 {[%clk 0:02:55]}  c6 {[%clk 0:02:34]} 4. e3 {[%clk 0:02:53]}  Bf5 {[%clk 0:02:33]} 5. Nbd2 {[%clk 0:02:53]}  e6 {[%clk 0:02:33]} 6. Qb3 {[%clk 0:02:47]}  Qc8 {[%clk 0:02:32]} 7. Nh4 {[%clk 0:02:47]}  Be4 {[%clk 0:02:29]} 8. f3 {[%clk 0:02:43]}  Bg6 {[%clk 0:02:27]} 9. Nxg6 {[%clk 0:02:27]}  hxg6 {[%clk 0:02:26]} 10. e4 {[%clk 0:02:02]}  dxe4 {[%clk 0:02:23]} 11. Nxe4 {[%clk 0:02:00]}  Nxe4 {[%clk 0:02:15]} 12. fxe4 {[%clk 0:02:01]}  e5 {[%clk 0:02:15]} 13. d5 {[%clk 0:01:57]}  Nd7 {[%clk 0:02:13]} 14. Be3 {[%clk 0:01:53]}  Bc5 {[%clk 0:02:12]} 15. Be2 {[%clk 0:01:46]}  O-O {[%clk 0:02:07]} 16. h4 {[%clk 0:01:43]}  cxd5 {[%clk 0:01:51]} 17. cxd5 {[%clk 0:01:42]}  Bxe3 {[%clk 0:01:49]} 18. Qxe3 {[%clk 0:01:43]}  Qc5 {[%clk 0:01:49]} 19. Qb3 {[%clk 0:01:16]}  Nf6 {[%clk 0:01:41]} 20. Bf3 {[%clk 0:01:16]}  Rac8 {[%clk 0:01:36]} 21. Ke2 {[%clk 0:01:08]}  Qc2+ {[%clk 0:01:25]} 22. Qxc2 {[%clk 0:01:04]}  Rxc2+ {[%clk 0:01:24]} 23. Kd3 {[%clk 0:01:03]}  Rxb2 {[%clk 0:01:23]} 24. Rab1 {[%clk 0:01:03]}  Rxa2 {[%clk 0:01:21]} 25. Rxb7 {[%clk 0:01:02]}  Rc8 {[%clk 0:01:16]} 26. Rhb1 {[%clk 0:00:59]}  Ra3+ {[%clk 0:01:08]} 27. Kd2 {[%clk 0:00:56]}  Ra4 {[%clk 0:01:05]} 28. R1b4 {[%clk 0:00:53]}  Ra2+ {[%clk 0:00:43]} 29. Rb2 {[%clk 0:00:53]}  Ra4 {[%clk 0:00:42]} 30. R2b4 {[%clk 0:00:52]}  Rxb4 {[%clk 0:00:34]} 31. Rxb4 {[%clk 0:00:52]}  a5 {[%clk 0:00:34]} 32. Ra4 {[%clk 0:00:48]}  Ra8 {[%clk 0:00:33]} 33. Kc3 {[%clk 0:00:49]}  Ne8 {[%clk 0:00:30]} 34. Kc4 {[%clk 0:00:47]}  Rc8+ {[%clk 0:00:23]} 35. Kb5 {[%clk 0:00:47]}  Nd6+ {[%clk 0:00:23]} 36. Kxa5 {[%clk 0:00:46]}  f5 {[%clk 0:00:23]} 37. Kb6 {[%clk 0:00:40]}  Kf7 {[%clk 0:00:16]} 38. Ra7+ {[%clk 0:00:23]}  Kf6 {[%clk 0:00:16]} 39. Rd7 {[%clk 0:00:19]}  Nc4+ {[%clk 0:00:09]} 40. Kb7 {[%clk 0:00:18]}  Re8 {[%clk 0:00:08]} 41. Rc7 {[%clk 0:00:17]}  Nd6+ {[%clk 0:00:08]} 42. Kc6 {[%clk 0:00:16]}  Nxe4 {[%clk 0:00:07]} 43. Bxe4 {[%clk 0:00:17]}  fxe4 {[%clk 0:00:07]} 44. d6 {[%clk 0:00:17]}  e3 {[%clk 0:00:07]} 45. d7 {[%clk 0:00:18]}  Rd8 {[%clk 0:00:07]} 46. Rc8 {[%clk 0:00:18]}  Ke7 {[%clk 0:00:08]} 47. Rc7 {[%clk 0:00:11]}  e2 {[%clk 0:00:08]} 0-1


[Site "https://www.chess.com"]

[Event "Titled Tuesday Blitz April 4 Early 2023"]
[White "Vafin, Ayrat"]
[Black "Itgelt, Khuyagtsogt"]
[WhiteFideId "4146530"]
[BlackFideId "4902912"]
[WhiteElo "2317"]
[BlackElo "2227"]
[Result "0-1"]
[Round "05"]
[TimeControl "180+2"]
[Date "2023.04.04"]
[WhiteClock "0:00:02"]
[BlackClock "0:00:22"]

1. Nf3 {[%clk 0:03:00]}  Nf6 {[%clk 0:02:59]} 2. g3 {[%clk 0:02:52]}  g6 {[%clk 0:02:59]} 3. Bg2 {[%clk 0:02:52]}  Bg7 {[%clk 0:02:59]} 4. O-O {[%clk 0:02:53]}  O-O {[%clk 0:03:00]} 5. c4 {[%clk 0:02:54]}  c6 {[%clk 0:02:54]} 6. d4 {[%clk 0:02:53]}  d5 {[%clk 0:02:54]} 7. cxd5 {[%clk 0:02:53]}  cxd5 {[%clk 0:02:53]} 8. Ne5 {[%clk 0:02:53]}  Nc6 {[%clk 0:02:54]} 9. Nxc6 {[%clk 0:02:53]}  bxc6 {[%clk 0:02:55]} 10. Nc3 {[%clk 0:02:53]}  Bf5 {[%clk 0:02:43]} 11. b3 {[%clk 0:02:48]}  Qa5 {[%clk 0:02:39]} 12. Bd2 {[%clk 0:02:33]}  Qa6 {[%clk 0:02:30]} 13. Rc1 {[%clk 0:02:29]}  Nd7 {[%clk 0:02:25]} 14. Bf4 {[%clk 0:02:16]}  Rfc8 {[%clk 0:02:09]} 15. Qd2 {[%clk 0:02:11]}  Qb6 {[%clk 0:01:56]} 16. Rfd1 {[%clk 0:02:03]}  a5 {[%clk 0:01:56]} 17. Na4 {[%clk 0:02:02]}  Qb4 {[%clk 0:01:48]} 18. Rc3 {[%clk 0:01:40]}  e5 {[%clk 0:01:28]} 19. dxe5 {[%clk 0:01:35]}  Nxe5 {[%clk 0:01:29]} 20. Bxe5 {[%clk 0:01:29]}  Bxe5 {[%clk 0:01:30]} 21. Re3 {[%clk 0:01:08]}  Qxd2 {[%clk 0:01:28]} 22. Rxd2 {[%clk 0:01:09]}  Re8 {[%clk 0:01:28]} 23. Nc5 {[%clk 0:00:19]}  Bd6 {[%clk 0:01:26]} 24. Rxe8+ {[%clk 0:00:18]}  Rxe8 {[%clk 0:01:27]} 25. Nd3 {[%clk 0:00:16]}  f6 {[%clk 0:01:15]} 26. Rc2 {[%clk 0:00:13]}  Bd7 {[%clk 0:01:15]} 27. Bf3 {[%clk 0:00:12]}  Kf7 {[%clk 0:01:14]} 28. Nc5 {[%clk 0:00:11]}  Bf5 {[%clk 0:01:14]} 29. Nd3 {[%clk 0:00:11]}  Bd7 {[%clk 0:01:05]} 30. Nc5 {[%clk 0:00:11]}  Ke7 {[%clk 0:01:03]} 31. Nxd7 {[%clk 0:00:11]}  Kxd7 {[%clk 0:01:04]} 32. Kg2 {[%clk 0:00:10]}  Rb8 {[%clk 0:01:02]} 33. e3 {[%clk 0:00:09]}  f5 {[%clk 0:01:01]} 34. h4 {[%clk 0:00:08]}  Rb4 {[%clk 0:01:01]} 35. Kf1 {[%clk 0:00:07]}  a4 {[%clk 0:01:00]} 36. bxa4 {[%clk 0:00:07]}  Rxa4 {[%clk 0:01:01]} 37. Ke2 {[%clk 0:00:08]}  Be5 {[%clk 0:00:59]} 38. Kd1 {[%clk 0:00:07]}  Kd6 {[%clk 0:00:59]} 39. Be2 {[%clk 0:00:06]}  c5 {[%clk 0:00:58]} 40. Bb5 {[%clk 0:00:06]}  Ra5 {[%clk 0:00:56]} 41. Be2 {[%clk 0:00:05]}  h6 {[%clk 0:00:55]} 42. f4 {[%clk 0:00:04]}  Bf6 {[%clk 0:00:53]} 43. Ke1 {[%clk 0:00:04]}  h5 {[%clk 0:00:52]} 44. Kf2 {[%clk 0:00:03]}  c4 {[%clk 0:00:52]} 45. Bf3 {[%clk 0:00:04]}  Kc5 {[%clk 0:00:46]} 46. Rd2 {[%clk 0:00:04]}  d4 {[%clk 0:00:46]} 47. exd4+ {[%clk 0:00:04]}  Bxd4+ {[%clk 0:00:47]} 48. Ke2 {[%clk 0:00:05]}  Ra3 {[%clk 0:00:47]} 49. Bg2 {[%clk 0:00:02]}  Rxg3 {[%clk 0:00:46]} 50. Kf1 {[%clk 0:00:02]}  Rg4 {[%clk 0:00:46]} 51. Re2 {[%clk 0:00:03]}  Rxf4+ {[%clk 0:00:45]} 52. Ke1 {[%clk 0:00:03]}  Rxh4 {[%clk 0:00:42]} 53. Re8 {[%clk 0:00:04]}  Kb4 {[%clk 0:00:41]} 54. Kd2 {[%clk 0:00:03]}  Rh2 {[%clk 0:00:37]} 55. Re2 {[%clk 0:00:03]}  g5 {[%clk 0:00:32]} 56. Kd1 {[%clk 0:00:02]}  g4 {[%clk 0:00:32]} 57. Kd2 {[%clk 0:00:01]}  h4 {[%clk 0:00:32]} 58. Bd5 {[%clk 0:00:01]}  c3+ {[%clk 0:00:31]} 59. Kd3 {[%clk 0:00:02]}  Rxe2 {[%clk 0:00:31]} 60. Kxe2 {[%clk 0:00:02]}  f4 {[%clk 0:00:30]} 61. Kd3 {[%clk 0:00:03]}  f3 {[%clk 0:00:23]} 62. Be6 {[%clk 0:00:02]}  f2 {[%clk 0:00:23]} 63. Ke2 {[%clk 0:00:02]}  c2 {[%clk 0:00:23]} 64. Kd2 {[%clk 0:00:02]}  f1=Q {[%clk 0:00:22]} 0-1


[Site "https://www.chess.com"]

[Event "Titled Tuesday Blitz April 4 Early 2023"]
[White "Bowden, Karl"]
[Black "Taboas Rodriguez, Daniel"]
[WhiteFideId "400548"]
[BlackFideId "2208466"]
[WhiteElo "2449"]
[BlackElo "2365"]
[Result "1-0"]
[Round "05"]
[TimeControl "180+2"]
[Date "2023.04.04"]
[WhiteClock "0:01:04"]
[BlackClock "0:00:15"]

1. e4 {[%clk 0:02:53]}  e5 {[%clk 0:02:18]} 2. Nf3 {[%clk 0:02:52]}  Nc6 {[%clk 0:02:17]} 3. Bb5 {[%clk 0:02:52]}  Nf6 {[%clk 0:02:16]} 4. O-O {[%clk 0:02:52]}  Nxe4 {[%clk 0:02:16]} 5. Re1 {[%clk 0:02:52]}  Nd6 {[%clk 0:02:14]} 6. Nxe5 {[%clk 0:02:52]}  Be7 {[%clk 0:02:15]} 7. Bd3 {[%clk 0:02:52]}  O-O {[%clk 0:02:08]} 8. Nc3 {[%clk 0:02:51]}  Nxe5 {[%clk 0:02:00]} 9. Rxe5 {[%clk 0:02:50]}  Bf6 {[%clk 0:02:01]} 10. Re3 {[%clk 0:02:44]}  g6 {[%clk 0:01:56]} 11. b3 {[%clk 0:02:41]}  Re8 {[%clk 0:01:50]} 12. Ba3 {[%clk 0:02:37]}  Rxe3 {[%clk 0:01:45]} 13. fxe3 {[%clk 0:02:37]}  Ne8 {[%clk 0:01:43]} 14. Qf3 {[%clk 0:02:36]}  d6 {[%clk 0:01:35]} 15. Rf1 {[%clk 0:02:32]}  Be6 {[%clk 0:01:25]} 16. Qxb7 {[%clk 0:02:23]}  a5 {[%clk 0:01:15]} 17. Qf3 {[%clk 0:02:01]}  Rb8 {[%clk 0:01:09]} 18. Ne4 {[%clk 0:01:59]}  Bg7 {[%clk 0:01:03]} 19. Bc4 {[%clk 0:01:08]}  d5 {[%clk 0:00:38]} 20. Nc5 {[%clk 0:01:07]}  dxc4 {[%clk 0:00:37]} 21. Nxe6 {[%clk 0:01:07]}  fxe6 {[%clk 0:00:38]} 22. Qf7+ {[%clk 0:01:07]}  Kh8 {[%clk 0:00:39]} 23. Bb2 {[%clk 0:01:06]}  h6 {[%clk 0:00:24]} 24. Qf8+ {[%clk 0:01:06]}  Kh7 {[%clk 0:00:23]} 25. Rf7 {[%clk 0:01:07]}  c3 {[%clk 0:00:15]} 26. Bxc3 {[%clk 0:01:05]}  e5 {[%clk 0:00:15]} 27. Bxe5 {[%clk 0:01:04]} 1-0


[Site "https://www.chess.com"]

[Event "Titled Tuesday Blitz April 4 Early 2023"]
[White "Klepikov, Nikita"]
[Black "Belozerov, Andrei"]
[WhiteFideId "24145220"]
[BlackFideId "4120213"]
[WhiteElo "2025"]
[BlackElo "2373"]
[Result "0-1"]
[Round "05"]
[TimeControl "180+2"]
[Date "2023.04.04"]
[WhiteClock "0:00:02"]
[BlackClock "0:00:49"]

1. e4 {[%clk 0:03:00]}  c5 {[%clk 0:02:57]} 2. Nf3 {[%clk 0:03:00]}  Nc6 {[%clk 0:02:57]} 3. d4 {[%clk 0:03:01]}  cxd4 {[%clk 0:02:57]} 4. Nxd4 {[%clk 0:03:02]}  g6 {[%clk 0:02:57]} 5. Nc3 {[%clk 0:03:02]}  Bg7 {[%clk 0:02:58]} 6. Be3 {[%clk 0:03:00]}  Nf6 {[%clk 0:02:58]} 7. Bc4 {[%clk 0:02:59]}  O-O {[%clk 0:02:58]} 8. Bb3 {[%clk 0:02:57]}  d6 {[%clk 0:02:59]} 9. f3 {[%clk 0:02:34]}  Bd7 {[%clk 0:02:57]} 10. Qd2 {[%clk 0:02:32]}  Rc8 {[%clk 0:02:54]} 11. O-O-O {[%clk 0:02:30]}  Nxd4 {[%clk 0:02:52]} 12. Bxd4 {[%clk 0:02:29]}  b5 {[%clk 0:02:53]} 13. g4 {[%clk 0:02:14]}  b4 {[%clk 0:02:30]} 14. Nd5 {[%clk 0:01:27]}  Nxd5 {[%clk 0:02:30]} 15. Bxg7 {[%clk 0:01:22]}  Kxg7 {[%clk 0:02:29]} 16. Qxd5 {[%clk 0:01:09]}  a5 {[%clk 0:02:20]} 17. h4 {[%clk 0:00:45]}  a4 {[%clk 0:01:50]} 18. Bc4 {[%clk 0:00:44]}  Kg8 {[%clk 0:01:27]} 19. Qd4 {[%clk 0:00:17]}  Qc7 {[%clk 0:01:23]} 20. b3 {[%clk 0:00:11]}  Be6 {[%clk 0:01:19]} 21. h5 {[%clk 0:00:08]}  Bxc4 {[%clk 0:01:15]} 22. hxg6 {[%clk 0:00:08]}  fxg6 {[%clk 0:01:14]} 23. Rxh7 {[%clk 0:00:08]}  Kxh7 {[%clk 0:01:00]} 24. Rh1+ {[%clk 0:00:08]}  Kg8 {[%clk 0:01:00]} 25. bxc4 {[%clk 0:00:02]}  Qxc4 {[%clk 0:00:49]} 26. Rh8+ {[%clk 0:00:02]}  Kf7 {[%clk 0:00:49]} 0-1


[Site "https://www.chess.com"]

[Event "Titled Tuesday Blitz April 4 Early 2023"]
[White "Rosenberg, Evan S"]
[Black "Guz, Ari"]
[WhiteFideId "2019299"]
[BlackFideId "2825759"]
[WhiteElo "2219"]
[BlackElo "2205"]
[Result "1-0"]
[Round "05"]
[TimeControl "180+2"]
[Date "2023.04.04"]
[WhiteClock "0:00:08"]
[BlackClock "0:00:05"]

1. d4 {[%clk 0:03:00]}  d5 {[%clk 0:02:54]} 2. Nf3 {[%clk 0:03:00]}  Bf5 {[%clk 0:02:52]} 3. c4 {[%clk 0:03:00]}  e6 {[%clk 0:02:52]} 4. Qb3 {[%clk 0:02:58]}  Nc6 {[%clk 0:02:49]} 5. Bd2 {[%clk 0:02:58]}  a5 {[%clk 0:02:20]} 6. a3 {[%clk 0:02:55]}  Rb8 {[%clk 0:02:09]} 7. e3 {[%clk 0:02:54]}  Be7 {[%clk 0:02:01]} 8. cxd5 {[%clk 0:02:50]}  exd5 {[%clk 0:02:02]} 9. Bb5 {[%clk 0:02:50]}  Nf6 {[%clk 0:02:01]} 10. Bxa5 {[%clk 0:02:49]}  O-O {[%clk 0:01:59]} 11. Bd2 {[%clk 0:02:41]}  Ne4 {[%clk 0:01:58]} 12. Nc3 {[%clk 0:02:38]}  Na5 {[%clk 0:01:54]} 13. Qxd5 {[%clk 0:02:24]}  Nxd2 {[%clk 0:01:45]} 14. Nxd2 {[%clk 0:02:15]}  Qc8 {[%clk 0:01:42]} 15. Be2 {[%clk 0:01:48]}  b6 {[%clk 0:01:32]} 16. O-O {[%clk 0:01:47]}  c5 {[%clk 0:01:29]} 17. Rac1 {[%clk 0:01:38]}  Bf6 {[%clk 0:01:20]} 18. b4 {[%clk 0:01:35]}  Rd8 {[%clk 0:01:08]} 19. Qf3 {[%clk 0:01:24]}  Nb7 {[%clk 0:01:07]} 20. bxc5 {[%clk 0:01:13]}  bxc5 {[%clk 0:01:03]} 21. Nce4 {[%clk 0:01:13]}  Be7 {[%clk 0:01:00]} 22. Nb3 {[%clk 0:01:06]}  h5 {[%clk 0:00:54]} 23. h3 {[%clk 0:01:05]}  Qe6 {[%clk 0:00:43]} 24. Nbxc5 {[%clk 0:01:02]}  Nxc5 {[%clk 0:00:39]} 25. Nxc5 {[%clk 0:01:02]}  Bxc5 {[%clk 0:00:32]} 26. Rxc5 {[%clk 0:01:02]}  Be4 {[%clk 0:00:32]} 27. Qxh5 {[%clk 0:00:55]}  Rb2 {[%clk 0:00:28]} 28. Bc4 {[%clk 0:00:52]}  Qf6 {[%clk 0:00:28]} 29. Qe5 {[%clk 0:00:39]}  Qg6 {[%clk 0:00:27]} 30. Qg5 {[%clk 0:00:21]}  Qd6 {[%clk 0:00:27]} 31. Re5 {[%clk 0:00:18]}  Rf8 {[%clk 0:00:26]} 32. Rxe4 {[%clk 0:00:18]}  g6 {[%clk 0:00:14]} 33. Rf4 {[%clk 0:00:14]}  Kg7 {[%clk 0:00:12]} 34. h4 {[%clk 0:00:13]}  Rc2 {[%clk 0:00:11]} 35. Bd3 {[%clk 0:00:11]}  Rc3 {[%clk 0:00:11]} 36. Be4 {[%clk 0:00:11]}  Rh8 {[%clk 0:00:09]} 37. g4 {[%clk 0:00:09]}  Rxa3 {[%clk 0:00:08]} 38. h5 {[%clk 0:00:09]}  Ra7 {[%clk 0:00:04]} 39. hxg6 {[%clk 0:00:09]}  fxg6 {[%clk 0:00:05]} 40. Rc1 {[%clk 0:00:08]} 1-0


[Site "https://www.chess.com"]

[Event "Titled Tuesday Blitz April 4 Early 2023"]
[White "Salman, Pavel"]
[Black "Vidit, Santosh Gujrathi"]
[WhiteFideId "24153753"]
[BlackFideId "5029465"]
[WhiteElo "2187"]
[BlackElo "2651"]
[Result "0-1"]
[Round "05"]
[TimeControl "180+2"]
[Date "2023.04.04"]
[WhiteClock "0:00:46"]
[BlackClock "0:01:33"]

1. g3 {[%clk 0:03:00]}  e5 {[%clk 0:02:55]} 2. Bg2 {[%clk 0:03:01]}  d5 {[%clk 0:02:55]} 3. d3 {[%clk 0:03:02]}  Nf6 {[%clk 0:02:53]} 4. Nd2 {[%clk 0:03:02]}  Bc5 {[%clk 0:02:50]} 5. c3 {[%clk 0:02:59]}  O-O {[%clk 0:02:46]} 6. h3 {[%clk 0:02:56]}  Re8 {[%clk 0:02:45]} 7. e4 {[%clk 0:02:52]}  Be6 {[%clk 0:02:38]} 8. Qe2 {[%clk 0:02:49]}  Nc6 {[%clk 0:02:36]} 9. Ngf3 {[%clk 0:02:49]}  h6 {[%clk 0:02:35]} 10. O-O {[%clk 0:02:49]}  a5 {[%clk 0:02:33]} 11. a4 {[%clk 0:02:44]}  Qd7 {[%clk 0:02:33]} 12. Kh2 {[%clk 0:02:44]}  Rad8 {[%clk 0:02:33]} 13. Nh4 {[%clk 0:02:19]}  dxe4 {[%clk 0:02:14]} 14. dxe4 {[%clk 0:02:20]}  Qd3 {[%clk 0:02:14]} 15. Qxd3 {[%clk 0:02:18]}  Rxd3 {[%clk 0:02:15]} 16. Nf5 {[%clk 0:02:15]}  Red8 {[%clk 0:02:13]} 17. Nb1 {[%clk 0:01:56]}  Rd1 {[%clk 0:02:03]} 18. Rxd1 {[%clk 0:01:50]}  Rxd1 {[%clk 0:02:04]} 19. Be3 {[%clk 0:01:50]}  Bxf5 {[%clk 0:02:00]} 20. exf5 {[%clk 0:01:41]}  Bxe3 {[%clk 0:02:00]} 21. fxe3 {[%clk 0:01:42]}  e4 {[%clk 0:01:58]} 22. g4 {[%clk 0:01:24]}  Ne5 {[%clk 0:01:58]} 23. Kg3 {[%clk 0:01:23]}  Nd3 {[%clk 0:01:52]} 24. b3 {[%clk 0:01:17]}  Re1 {[%clk 0:01:51]} 25. Kh2 {[%clk 0:01:07]}  Nc5 {[%clk 0:01:50]} 26. b4 {[%clk 0:01:01]}  Nb3 {[%clk 0:01:46]} 27. Ra2 {[%clk 0:00:59]}  Rxb1 {[%clk 0:01:46]} 28. bxa5 {[%clk 0:00:58]}  Nxa5 {[%clk 0:01:46]} 29. Rd2 {[%clk 0:00:59]}  Rc1 {[%clk 0:01:41]} 30. Kg3 {[%clk 0:00:55]}  Rxc3 {[%clk 0:01:40]} 31. Kf4 {[%clk 0:00:56]}  c6 {[%clk 0:01:35]} 32. h4 {[%clk 0:00:56]}  Nd5+ {[%clk 0:01:33]} 33. Kxe4 {[%clk 0:00:46]}  Rxe3+ {[%clk 0:01:33]} 34. Kd4 {[%clk 0:00:46]}  Nb3+ {[%clk 0:01:33]} 0-1


[Site "https://www.chess.com"]